bitfinex-derivatives/quotes_SOLF0:USTF0_20240907
["timestamp","ask_amount","ask_price","bid_price","bid_amount"]
[1725735784054,5.22447405,127.71,127.65,9.61]
[1725735784256,3.86197405,127.71,127.67,9.61]
[1725735784454,3.9153,127.71,127.68,3.916]
[1725735784649,7.78781758,127.71,127.68,3.916]
[1725735788252,7.78781758,127.71,127.69,3.9158]
[1725735790064,7.78781758,127.71,127.68,3.916]
[1725735791865,3.9157,127.7,127.67,3.9163]
[1725735792964,3.9157,127.7,127.68,3.9161]
[1725735793171,7.78811758,127.71,127.68,3.9161]
[1725735793971,7.78811758,127.71,127.69,3.9158]
[1725735809077,3.9156,127.71,127.69,3.9158]
[1725735809380,3.9152,127.72,127.69,3.9158]
[1725735809678,3.9152,127.72,127.7,3.9155]
[1725735812177,7.79613672,127.71,127.69,3.9157]
[1725735813487,3.9156,127.7,127.68,3.916]
[1725735813680,9.61,127.71,127.64,9.61]
[1725735814084,13.44539642,127.71,127.66,3.9166]
[1725735814695,3.9161,127.69,127.66,3.9166]
[1725735817185,9.61,127.7,127.63,11.0154]
[1725735817387,10.9555,127.7,127.63,11.0154]
[1725735817577,9.61,127.68,127.63,11.0154]
[1725735817884,9.61,127.68,127.63,9.61]
[1725735818485,3.9166,127.67,127.64,3.9174]
[1725735819379,9.61,127.68,127.62,9.61]
[1725735819577,9.61,127.63,127.57,1.3523]
[1725735819780,9.61,127.62,127.55,9.61]
[1725735820089,9.61,127.62,127.57,3.9194]
[1725735820387,9.61,127.61,127.55,9.61]
[1725735820591,9.61,127.61,127.54,1.3733]
[1725735821089,3.9188,127.6,127.56,3.9197]
[1725735821277,3.9188,127.6,127.54,1.3733]
[1725735821278,9.61,127.61,127.54,10.9833]
[1725735823487,3.9192,127.59,127.55,3.92]
[1725735824084,9.61,127.59,127.55,3.92]
[1725735824492,3.9193,127.58,127.55,3.92]
[1725735827585,1.3605,127.6,127.56,3.9198]
[1725735827788,1.3448,127.62,127.55,9.61]
[1725735828187,9.61,127.61,127.55,9.61]
[1725735829389,3.9187,127.6,127.57,3.9194]
[1725735829895,3.9187,127.6,127.56,3.9196]
[1725735830198,13.5291,127.59,127.56,3.9196]
[1725735830382,9.61,127.59,127.52,9.61]
[1725735830588,3.9193,127.58,127.55,3.92]
[1725735831691,3.9196,127.57,127.54,3.9204]
[1725735832395,13.5296,127.57,127.54,3.9204]
[1725735833496,13.5296,127.57,127.53,3.9206]
[1725735837099,3.90918949,127.56,127.52,3.921]
[1725735837588,9.61,127.57,127.52,3.921]
[1725735837994,7.91801191,127.56,127.52,3.921]
[1725735840707,3.9202,127.56,127.53,3.9206]
[1725735840910,13.5297,127.57,127.51,123.74998515]
[1725735842096,13.5297,127.57,127.54,3.9205]
[1725735844100,9.61,127.58,127.51,123.74998515]
[1725735844295,2.648,127.61,127.54,9.61]
[1725735844500,9.61,127.6,127.54,9.61]
[1725735844700,3.919,127.59,127.56,3.9196]
[1725735845208,3.919,127.59,127.54,9.61]
[1725735845505,3.919,127.59,127.57,3.9195]
[1725735845710,9.61,127.6,127.57,3.9195]
[1725735845711,13.5288,127.6,127.57,3.9195]
[1725735848399,9.61,127.59,127.57,3.9195]
[1725735848605,13.5291,127.59,127.56,3.9196]
[1725735850207,13.5291,127.59,127.57,3.9196]
[1725735852611,9.61,127.59,127.57,3.9196]
[1725735852809,1.3448,127.62,127.56,9.61]
[1725735853011,3.89524179,127.63,127.58,9.61]
[1725735853218,9.61,127.64,127.58,9.61]
[1725735853219,13.5275,127.64,127.58,13.44830428]
[1725735853512,13.5275,127.64,127.61,3.9182]
[1725735853513,3.9175,127.64,127.61,3.9182]
[1725735853915,18.70678307,127.65,127.62,3.918]
[1725735854117,10.9105,127.65,127.59,13.51849086]
[1725735854313,1.4162,127.66,127.6,9.61]
[1725735854516,122.60358416,127.67,127.64,3.9174]
[1725735854813,3.99828263,127.66,127.64,3.9174]
[1725735857617,118.68688416,127.67,127.6,1.3195]
[1725735858123,122.66681989,127.67,127.6,1.3195]
[1725735858807,3.9172,127.65,127.6,1.3195]
[1725735859010,13.5272,127.65,127.6,1.3195]
[1725735859719,13.5272,127.65,127.62,3.9179]
[1725735860616,9.61,127.65,127.6,1.3195]
[1725735861322,13.5272,127.65,127.62,3.9178]
[1725735861523,13.5272,127.65,127.6,1.3195]
[1725735862018,9.61,127.65,127.63,3.9176]
[1725735863524,3.917,127.66,127.63,3.9176]
[1725735864525,126.58341989,127.67,127.61,9.61]
[1725735866513,126.58341989,127.67,127.64,3.9172]
[1725735868826,3.9169,127.66,127.63,3.9176]
[1725735877034,113.05681989,127.67,127.62,3.9179]
[1725735877241,9.61,127.65,127.62,3.9179]
[1725735877429,9.61,127.65,127.58,13.49274943]
[1725735877731,3.9176,127.64,127.61,3.9181]
[1725735878144,3.9176,127.64,127.58,13.49274943]
[1725735878341,3.9176,127.64,127.61,3.9182]
[1725735879445,3.9178,127.63,127.6,3.9185]
[1725735879635,9.61,127.64,127.6,3.9185]
[1725735879836,11.0062,127.64,127.6,3.9185]
[1725735880639,3.9179,127.63,127.6,3.9185]
[1725735880838,11.0062,127.64,127.59,3.9188]
[1725735881637,3.9181,127.62,127.59,3.9188]
[1725735883947,3.9184,127.61,127.58,3.9191]
[1725735884246,9.61,127.62,127.55,9.61]
[1725735884545,3.9188,127.6,127.57,3.9195]
[1725735884748,3.9188,127.6,127.55,9.61]
[1725735886343,13.5285,127.61,127.58,3.9191]
[1725735886950,1.3289,127.63,127.57,9.61]
[1725735887848,3.9183,127.62,127.59,3.9188]
[1725735888043,1.3289,127.63,127.59,3.9188]
[1725735888246,3.9185,127.61,127.58,3.9192]
[1725735889648,3.9185,127.61,127.59,3.9189]
[1725735890156,3.9185,127.61,127.58,3.9191]
[1725735890547,13.5285,127.61,127.58,3.9191]
[1725735893743,13.5285,127.61,127.59,3.9189]
[1725735895260,13.5285,127.61,127.57,3.9194]
[1725735895753,3.9187,127.6,127.57,3.9194]
[1725735896049,7.85668024,127.6,127.57,3.9194]
[1725735898956,13.54798024,127.6,127.53,10.9255]
[1725735899254,3.9197,127.57,127.54,3.9203]
[1725735899458,3.9197,127.57,127.53,1.3155]
[1725735900158,3.9197,127.57,127.55,3.9201]
[1725735900356,3.9197,127.57,127.53,1.3155]
[1725735901052,3.9197,127.57,127.54,3.9203]
[1725735901848,9.61,127.56,127.51,114.13998515]
[1725735902356,9.61,127.56,127.51,118.06128515]
[1725735902357,3.9207,127.54,127.51,118.06128515]
[1725735903855,3.9203,127.55,127.51,118.06128515]
[1725735904259,3.9203,127.55,127.52,3.921]
[1725735905450,1.3169,127.59,127.53,9.61]
[1725735905661,2.7063,127.63,127.56,9.61]
[1725735905959,13.5282,127.62,127.58,3.919]
[1725735906150,3.9182,127.62,127.58,3.919]
[1725735906350,3.9182,127.62,127.56,13.45226213]
[1725735907357,3.9184,127.61,127.58,3.919]
[1725735908063,3.9187,127.6,127.57,3.9195]
[1725735909360,9.61,127.62,127.57,3.9195]
[1725735909361,3.9185,127.61,127.57,3.9195]
[1725735909662,1.3519,127.63,127.56,3.9140655]
[1725735909862,1.3519,127.63,127.56,13.5240655]
[1725735909863,13.5282,127.62,127.56,13.5240655]
[1725735910168,13.5282,127.62,127.56,9.61]
[1725735910563,13.5282,127.62,127.56,13.49544417]
[1725735910871,13.5282,127.62,127.59,3.9188]
[1725735913261,2.667,127.66,127.58,9.61]
[1725735913262,3.9171,127.65,127.58,9.61]
[1725735913460,2.667,127.66,127.59,9.61]
[1725735913670,12.277,127.66,127.59,9.61]
[1725735914167,3.9175,127.64,127.61,3.9182]
[1725735915374,114.46061989,127.67,127.6,9.61]
[1725735916870,118.37741989,127.67,127.63,3.9175]
[1725735917567,3.9168,127.66,127.63,3.9175]
[1725735917770,9.61,127.65,127.62,3.9178]
[1725735918779,9.61,127.65,127.61,3.9182]
[1725735918961,5.38373573,127.67,127.59,9.61]
[1725735919171,9.61,127.66,127.59,9.61]
[1725735919475,3.9173,127.65,127.62,3.918]
[1725735920466,3.9168,127.66,127.59,9.61]
[1725735920768,3.9168,127.66,127.6,9.61]
[1725735921477,3.9168,127.66,127.63,3.9176]
[1725735922877,3.9173,127.65,127.62,3.9179]
[1725735924277,9.61,127.66,127.59,9.61]
[1725735924471,9.61,127.63,127.57,1.3133]
[1725735924673,13.45267926,127.63,127.57,1.3133]
[1725735925676,3.9182,127.62,127.59,3.9189]
[1725735928884,17.37057926,127.63,127.57,10.9233]
[1725735929181,3.9179,127.63,127.57,10.9233]
[1725735929484,7.83183584,127.64,127.61,3.9182]
[1725735931880,3.9178,127.63,127.61,3.9182]
[1725735933285,7.83183584,127.64,127.61,3.9182]
[1725735933778,3.9176,127.64,127.61,3.9182]
[1725735933985,3.9176,127.64,127.62,3.918]
[1725735934384,3.9176,127.64,127.6,9.61]
[1725735935284,3.9176,127.64,127.61,3.9181]
[1725735937588,3.9175,127.64,127.61,3.9181]
[1725735941984,3.9178,127.63,127.61,3.9181]
[1725735945296,3.9182,127.62,127.6,3.9184]
[1725735945489,9.61,127.62,127.57,1.3133]
[1725735945891,3.9184,127.61,127.58,3.9191]
[1725735946596,3.9184,127.61,127.59,3.9189]
[1725735951900,7.92496061,127.64,127.6,3.9186]
[1725735952502,3.9179,127.63,127.6,3.9186]
[1725735953998,3.9179,127.63,127.61,3.9183]
[1725735954502,3.9179,127.63,127.58,9.61]
[1725735955303,3.9179,127.63,127.6,3.9185]
[1725735956607,3.9178,127.63,127.6,3.9185]
[1725735960507,3.9182,127.62,127.59,3.9187]
[1725735962008,9.61,127.61,127.54,141.54096964]
[1725735962313,9.61,127.59,127.54,141.54096964]
[1725735962609,3.9195,127.58,127.55,3.9201]
[1725735962909,13.5295,127.58,127.55,3.9201]
[1725735963315,13.5291,127.59,127.56,3.9197]
[1725735963612,3.9191,127.59,127.54,151.15096964]
[1725735964115,3.9191,127.59,127.56,3.9197]
[1725735968316,13.5291,127.59,127.56,3.9197]
[1725735979517,3.9193,127.58,127.56,3.9197]
[1725735982415,1.3893,127.63,127.52,1.3844]
[1725735982416,13.6042754,127.57,127.52,1.3844]
[1725735982618,11.0031,127.58,127.52,1.3844]
[1725735983018,3.9198,127.57,127.54,3.9202]
[1725735984029,3.9198,127.57,127.55,3.9201]
[1725735987625,3.9194,127.58,127.56,3.9198]
[1725735987821,3.9194,127.58,127.53,9.61]
[1725735988525,3.9194,127.58,127.55,3.92]
[1725735991832,3.9191,127.59,127.56,3.9197]
[1725735992529,3.9191,127.59,127.57,3.9194]
[1725735993028,13.5288,127.6,127.57,3.9194]
[1725735993425,3.9188,127.6,127.58,3.9192]
[1725735993628,3.9188,127.6,127.52,1.3844]
[1725735993629,1.2977,127.62,127.56,9.61]
[1725735993830,9.61,127.63,127.56,9.61]
[1725735994030,5.23766061,127.64,127.58,9.61]
[1725735994224,9.61,127.66,127.6,9.61]
[1725735994425,9.61,127.66,127.59,3.84509803]
[1725735994426,5.29681176,127.67,127.61,9.61]
[1725735994736,2.7059,127.7,127.54,11.92214956]
[1725735994737,14.9403,127.7,127.64,9.61]
[1725735994940,9.61,127.7,127.64,9.61]
[1725735995441,9.61,127.69,127.63,9.61]
[1725735996041,9.61,127.69,127.66,3.9168]
[1725735996738,13.59621251,127.69,127.65,3.9171]
[1725735997539,9.61,127.68,127.62,1.2987]
[1725735997835,9.61,127.66,127.62,1.2987]
[1725735998240,9.61,127.67,127.62,1.2987]
[1725735998939,3.9169,127.66,127.62,5.2166]
[1725735999135,9.61,127.66,127.62,3.9179]
[1725735999336,9.61,127.65,127.58,10.8881]
[1725735999543,3.9179,127.63,127.59,3.9187]
[1725735999743,13.5279,127.63,127.59,3.9187]
[1725736000247,13.5279,127.63,127.6,3.9186]
[1725736000635,13.5279,127.63,127.59,3.9187]
[1725736001044,3.9176,127.64,127.58,1.2781]
[1725736001245,9.61,127.65,127.59,9.61]
[1725736001847,9.61,127.66,127.6,9.61]
[1725736002847,13.5268,127.66,127.6,9.61]
[1725736004245,13.5268,127.66,127.62,3.9177]
[1725736004746,13.5268,127.66,127.63,3.9176]
[1725736007642,3.9168,127.66,127.63,3.9176]
[1725736012842,3.93988289,127.76,127.63,9.61]
[1725736013043,9.61,127.7,127.63,9.61]
[1725736013347,3.9162,127.68,127.65,3.9168]
[1725736013550,3.9162,127.68,127.63,9.61]
[1725736013748,3.97633426,127.7,127.63,9.61]
[1725736013945,9.61,127.7,127.63,9.61]
[1725736014252,3.916,127.69,127.66,3.9166]
[1725736016746,3.916,127.69,127.67,3.9165]
[1725736018057,13.5257,127.7,127.67,3.9165]
[1725736019655,3.9164,127.68,127.58,4.0237]
[1725736019855,3.9164,127.68,127.63,9.61]
[1725736021760,9.61,127.68,127.63,3.9175]
[1725736021956,9.61,127.67,127.63,3.9175]
[1725736022162,4.0004,127.69,127.6,3.9186]
[1725736022163,9.61,127.64,127.6,3.9186]
[1725736022358,13.4393282,127.64,127.6,3.9186]
[1725736023662,3.9179,127.63,127.6,3.9186]
[1725736033570,4.0004,127.69,127.64,3.9174]
[1725736033871,13.6104,127.69,127.62,9.61]
[1725736034066,1.374,127.69,127.64,9.61]
[1725736034263,3.82941996,127.71,127.64,9.61]
[1725736034668,3.82941996,127.71,127.65,9.61]
[1725736034869,13.6935,127.73,127.65,9.61]
[1725736035076,0.28800904,127.72,127.68,3.916]
[1725736035763,0.28800904,127.72,127.67,9.61]
[1725736036169,12.3729,127.73,127.67,9.61]
[1725736036362,12.3729,127.73,127.7,3.9155]
[1725736036363,5.32629677,127.73,127.7,3.9155]
[1725736037375,1.3807,127.73,127.7,3.9155]
[1725736037675,9.61,127.75,127.7,3.9155]
[1725736037872,0.28798974,127.74,127.7,9.61]
[1725736038068,1.4141,127.76,127.7,9.61]
[1725736038069,14.84734345,127.76,127.7,9.61]
[1725736038271,0.28797384,127.75,127.7,9.61]
[1725736038776,14.9593885,127.76,127.72,3.9148]
[1725736038961,0.28797308,127.75,127.72,3.9148]
[1725736041378,0.28797308,127.75,127.71,3.9152]
[1725736042971,5.3493885,127.76,127.72,3.9149]
[1725736043171,0.28794515,127.75,127.72,3.9149]
[1725736045875,5.3493885,127.76,127.72,3.9149]
[1725736048979,0.28794505,127.75,127.72,3.9149]
[1725736051679,5.3493885,127.76,127.72,3.9149]
[1725736051877,0.28794679,127.75,127.72,3.9149]
[1725736054085,0.28794679,127.75,127.66,24.08]
[1725736055381,0.28794679,127.75,127.7,3.9155]
[1725736055885,0.28794679,127.75,127.69,3.9157]
[1725736056090,29.4293885,127.76,127.69,3.9157]
[1725736056286,0.28797727,127.75,127.69,3.9157]
[1725736060091,9.62,127.74,127.69,3.9157]
[1725736060288,0.28797727,127.73,127.69,3.9157]
[1725736060590,9.62,127.74,127.69,3.9157]
[1725736060783,0.28797716,127.73,127.69,3.9157]
[1725736062985,0.28797716,127.73,127.7,3.9155]
[1725736063188,14.9693885,127.76,127.7,3.9155]
[1725736063388,0.28790691,127.75,127.7,3.9155]
[1725736064186,14.9693885,127.76,127.7,3.9155]
[1725736064787,14.9693885,127.76,127.71,3.9151]
[1725736065584,5.3493885,127.76,127.72,3.9149]
[1725736065788,3.9352885,127.76,127.72,3.9149]
[1725736066790,10.9459,127.77,127.72,3.9149]
[1725736067598,1.3259,127.77,127.72,3.9149]
[1725736067899,3.92065481,127.76,127.72,3.9149]
[1725736069288,10.9459,127.77,127.72,3.9149]
[1725736070188,1.393,127.78,127.73,3.9146]
[1725736070383,11.013,127.78,127.73,3.9146]
[1725736073987,9.62,127.77,127.72,3.9147]
[1725736074296,4.01316756,127.76,127.72,3.9147]
[1725736088799,9.62,127.75,127.7,1.3332]
[1725736089104,13.60339598,127.75,127.67,9.62]
[1725736089294,13.60339598,127.75,127.7,3.9154]
[1725736093903,13.60339598,127.75,127.69,13.5358]
[1725736095505,0.2879111,127.74,127.69,13.5358]
[1725736095804,13.60339598,127.75,127.69,13.5358]
[1725736097307,13.60339598,127.75,127.7,3.9155]
[1725736107913,1.3446,127.74,127.7,3.9155]
[1725736112022,1.3446,127.74,127.69,9.62]
[1725736112221,9.62,127.77,127.7,9.62]
[1725736112524,3.9711005,127.76,127.73,3.9146]
[1725736113326,9.62,127.77,127.73,3.9146]
[1725736116227,3.9445473,127.76,127.73,3.9146]
[1725736116622,9.62,127.77,127.73,3.9146]
[1725736116823,3.8262618,127.76,127.73,3.9146]
[1725736117024,9.62,127.77,127.73,3.9146]
[1725736118035,0.28788931,127.76,127.73,3.9146]
[1725736118329,3.84976223,127.75,127.73,3.9146]
[1725736118830,9.62,127.77,127.73,3.9146]
[1725736119028,0.28788931,127.76,127.73,3.9146]
[1725736119335,3.94689735,127.75,127.73,3.9146]
[1725736119830,9.62,127.77,127.73,3.9146]
[1725736120423,3.84506215,127.76,127.73,3.9146]
[1725736121331,9.62,127.77,127.73,3.9146]
[1725736122830,9.62,127.76,127.66,1.3838]
[1725736123024,13.4642788,127.76,127.69,9.62]
[1725736123430,13.4642788,127.76,127.71,3.915]
[1725736128332,13.4642788,127.76,127.72,3.9149]
[1725736130332,9.62,127.74,127.66,1.3838]
[1725736130531,9.62,127.74,127.67,9.62]
[1725736131243,4.00760679,127.74,127.69,3.9157]
[1725736131428,9.62,127.74,127.67,9.62]
[1725736131743,13.46075374,127.74,127.68,9.62]
[1725736133542,13.46075374,127.74,127.69,3.9156]
[1725736134441,13.46075374,127.74,127.68,9.62]
[1725736134442,13.46075374,127.74,127.7,3.9156]
[1725736134835,3.84075374,127.74,127.7,3.9156]
[1725736146139,3.84075374,127.74,127.71,3.9153]
[1725736146338,3.897462,127.76,127.72,9.62]
[1725736146545,12.3931,127.78,127.72,9.62]
[1725736147244,12.3931,127.78,127.73,3.9145]
[1725736148242,12.3931,127.78,127.72,3.9148]
[1725736148442,9.907857,127.77,127.72,3.9148]
[1725736148642,9.62,127.75,127.69,9.62]
[1725736148849,3.8403697,127.74,127.71,3.9151]
[1725736153048,9.62,127.77,127.71,9.62]
[1725736153244,3.83605365,127.76,127.71,9.62]
[1725736154152,3.83605365,127.76,127.73,3.9146]
[1725736157355,9.62,127.77,127.73,3.9146]
[1725736157554,4.00721512,127.76,127.73,3.9146]
[1725736168658,9.62,127.75,127.67,4.07422913]
[1725736168860,9.62,127.75,127.68,13.69422913]
[1725736169060,9.62,127.75,127.71,3.9151]
[1725736169967,9.62,127.75,127.72,3.915]
[1725736172068,4.00885949,127.76,127.72,3.915]
[1725736172267,9.62,127.77,127.72,3.915]
[1725736184371,9.62,127.77,127.72,3.9149]
[1725736184577,3.97204503,127.76,127.72,3.9149]
[1725736185371,1.3801,127.78,127.71,9.62]
[1725736185575,1.3801,127.78,127.74,9.62]
[1725736185983,1.3801,127.78,127.75,3.9138]
[1725736187276,1.3801,127.78,127.74,3.9141]
[1725736189177,1.3801,127.78,127.73,3.9145]
[1725736189178,11.0001,127.78,127.73,3.9145]
[1725736189377,11.0001,127.78,127.7,9.62]
[1725736189883,11.0001,127.78,127.74,3.9143]
[1725736191081,1.3801,127.78,127.73,9.62]
[1725736191388,1.4127,127.8,127.75,9.62]
[1725736191590,1.3525,127.82,127.77,3.9132]
[1725736192183,1.3525,127.82,127.78,3.9131]
[1725736194494,10.9725,127.82,127.77,3.9133]
[1725736199803,10.9725,127.82,127.76,3.9135]
[1725736202702,1.3525,127.82,127.77,3.9133]
[1725736202910,5.19483368,127.83,127.76,9.62]
[1725736203210,5.19483368,127.83,127.79,3.9127]
[1725736204014,3.9119,127.82,127.79,3.9127]
[1725736205698,3.9124,127.81,127.78,3.9131]
[1725736205907,5.19483368,127.83,127.76,9.62]
[1725736205908,9.62,127.82,127.76,9.62]
[1725736206307,3.9127,127.8,127.77,3.9131]
[1725736208110,3.9124,127.81,127.78,3.913]
[1725736208503,6.52463368,127.83,127.77,9.62]
[1725736209106,0.28774852,127.82,127.77,9.62]
[1725736209308,4.19974852,127.82,127.79,3.9127]
[1725736209509,3.912,127.82,127.79,3.9127]
[1725736211316,9.10653368,127.83,127.79,3.9127]
[1725736212117,9.10653368,127.83,127.77,9.62]
[1725736212313,3.9114,127.84,127.74,3.90558857]
[1725736212507,2.6281,127.87,127.82,3.9117]
[1725736212707,0.2877053,127.86,127.81,9.62]
[1725736213114,9.9077053,127.86,127.78,4.0605]
[1725736213307,13.5309,127.86,127.8,9.62]
[1725736214016,13.5309,127.86,127.83,3.9114]
[1725736214718,3.9109,127.86,127.83,3.9114]
[1725736214907,9.15031561,127.87,127.83,3.9114]
[1725736215114,9.15031561,127.87,127.84,3.9113]
[1725736215502,7.79651561,127.87,127.81,3.95884329]
[1725736215722,7.79651561,127.87,127.81,9.62]
[1725736215914,7.79651561,127.87,127.81,13.45440797]
[1725736216308,7.79651561,127.87,127.84,3.9111]
[1725736217616,3.9102,127.88,127.85,3.911]
[1725736218811,3.9102,127.88,127.82,9.62]
[1725736219412,5.11429827,127.9,127.85,9.62]
[1725736220019,9.02389827,127.9,127.87,3.9103]
[1725736220206,5.11429827,127.9,127.85,9.62]
[1725736220813,9.02389827,127.9,127.86,3.9105]
[1725736221108,1.3256,127.92,127.86,9.62]
[1725736221312,0.28757787,127.91,127.86,9.62]
[1725736221609,4.26387907,127.91,127.86,9.62]
[1725736221812,3.9763012,127.91,127.86,9.62]
[1725736222422,7.8856012,127.91,127.88,3.91]
[1725736223015,7.8856012,127.91,127.87,3.9102]
[1725736224817,3.9763012,127.91,127.88,3.91]
[1725736225618,7.8854012,127.91,127.87,3.9102]
[1725736226123,7.8854012,127.91,127.86,9.62]
[1725736227228,7.8854012,127.91,127.88,3.9099]
[1725736227428,7.8854012,127.91,127.88,13.5299]
[1725736227627,3.9763012,127.91,127.88,9.62]
[1725736227932,122.15178318,127.95,127.89,3.9096]
[1725736228131,3.9087,127.93,127.89,3.9096]
[1725736230119,3.9089,127.92,127.89,3.9096]
[1725736230330,3.96034279,127.91,127.89,3.9096]
[1725736233035,7.86954279,127.91,127.88,13.5299]
[1725736233338,3.9092,127.91,127.88,13.5299]
[1725736233727,7.72489755,127.91,127.88,13.5299]
[1725736235529,3.81569755,127.91,127.84,1.2857]
[1725736235738,9.62,127.92,127.85,9.62]
[1725736235934,0.287547,127.91,127.85,9.62]
[1725736236133,3.94829841,127.9,127.85,9.62]
[1725736236440,9.62,127.91,127.84,1.2857]
[1725736236632,13.55147884,127.91,127.84,10.9057]
[1725736236833,3.9099,127.89,127.86,3.9105]
[1725736237536,3.9101,127.88,127.85,3.9109]
[1725736238537,3.9104,127.87,127.85,3.9109]
[1725736238739,12.246,127.9,127.8,1.3913]
[1725736238933,9.62,127.88,127.82,9.62]
[1725736239132,9.62,127.88,127.84,3.9112]
[1725736239133,3.9105,127.87,127.84,3.9112]
[1725736239540,9.62,127.88,127.82,9.62]
[1725736239839,9.62,127.88,127.83,3.9115]
[1725736239840,3.9108,127.86,127.83,3.9115]
[1725736240736,9.62,127.88,127.83,3.9115]
[1725736240938,9.62,127.88,127.82,9.62]
[1725736241138,2.626,127.9,127.83,9.62]
[1725736241139,3.9105,127.87,127.83,9.62]
[1725736241735,3.9105,127.87,127.84,3.9112]
[1725736244332,9.62,127.88,127.81,3.821205]
[1725736244537,9.62,127.88,127.81,9.62]
[1725736245045,3.9107,127.86,127.82,3.9116]
[1725736245541,3.9107,127.86,127.83,3.9115]
[1725736246739,3.9107,127.86,127.83,13.5315]
[1725736246938,3.9104,127.87,127.84,3.9111]
[1725736247148,2.626,127.9,127.84,9.62]
[1725736247338,2.626,127.9,127.85,9.62]
[1725736248137,3.9099,127.89,127.86,3.9105]
[1725736253250,3.9099,127.89,127.87,3.9103]
[1725736255354,5.2154,127.9,127.87,3.9103]
[1725736255553,1.3058,127.9,127.87,3.9103]
[1725736256564,3.9098,127.89,127.87,3.9103]
[1725736257044,3.9098,127.89,127.86,3.9105]
[1725736259157,3.9101,127.88,127.86,3.9105]
[1725736260560,3.9101,127.88,127.85,13.5308]
[1725736260754,3.9101,127.88,127.8,1.3913]
[1725736260755,9.62,127.88,127.8,1.3913]
[1725736260960,9.62,127.88,127.81,9.62]
[1725736261256,3.9108,127.86,127.83,3.9114]
[1725736263659,9.62,127.88,127.83,3.9114]
[1725736264148,3.9108,127.86,127.83,3.9114]
[1725736264353,9.62,127.88,127.82,3.9117]
[1725736264552,9.62,127.88,127.81,9.62]
[1725736264755,3.9116,127.83,127.75,7.842]
[1725736264957,9.62,127.85,127.81,3.912]
[1725736265154,9.62,127.87,127.8,9.62]
[1725736265347,3.9112,127.85,127.81,9.62]
[1725736266362,3.9112,127.85,127.82,3.9119]
[1725736266749,3.99711277,127.84,127.76,1.3596]
[1725736266950,1.4073,127.88,127.78,9.62]
[1725736267157,9.62,127.85,127.78,9.62]
[1725736267354,3.9117,127.83,127.8,3.9125]
[1725736267558,7.90959544,127.83,127.8,3.9125]
[1725736275766,3.9117,127.83,127.8,3.9125]
[1725736276271,1.4073,127.88,127.8,3.9125]
[1725736276272,9.62,127.87,127.8,9.62]
[1725736277565,3.9111,127.85,127.83,3.9116]
[1725736280972,3.9113,127.84,127.79,9.62]
[1725736281161,9.62,127.85,127.79,9.62]
[1725736281963,3.9118,127.83,127.81,3.9121]
[1725736282465,9.62,127.85,127.81,3.9121]
[1725736282868,3.9114,127.84,127.81,3.9121]
[1725736289471,13.5311,127.85,127.82,3.9119]
[1725736295483,3.9113,127.84,127.82,3.9119]
[1725736296479,3.9113,127.84,127.79,9.62]
[1725736296681,3.9113,127.84,127.81,3.912]
[1725736297577,3.9116,127.83,127.8,3.9122]
[1725736297774,3.90701976,127.82,127.8,3.9122]
[1725736299883,10.9445,127.84,127.76,1.3596]
[1725736299884,9.62,127.81,127.76,1.3596]